bitfinex-derivatives/quotes_SOLF0:USTF0_20241012
["timestamp","ask_amount","ask_price","bid_price","bid_amount"]
[1728696651738,0.12502,145.97,145.94,3.4264]
[1728696652837,0.12502,145.97,145.95,3.4261]
[1728696653241,0.12502,145.97,145.95,8.3061]
[1728696653744,0.12502,145.97,145.95,4.88]
[1728696660540,0.12502,145.97,145.92,8.42]
[1728696660747,3.4262,145.96,145.93,4.88]
[1728696660945,8.42,145.96,145.92,3.4269]
[1728696662553,8.42,145.96,145.91,4.88]
[1728696663054,3.4265,145.94,145.91,4.88]
[1728696663244,8.42,145.96,145.91,4.88]
[1728696663569,3.4265,145.95,145.91,4.88]
[1728696664247,3.4265,145.95,145.91,8.3072]
[1728696664746,3.4269,145.93,145.91,4.88]
[1728696665142,8.42,145.94,145.89,1.4339]
[1728696665350,3.4272,145.92,145.88,16.7278]
[1728696665551,3.4272,145.92,145.88,13.3]
[1728696665952,8.42,145.93,145.88,4.88]
[1728696666256,3.4273,145.91,145.88,4.88]
[1728696671357,4.88,145.95,145.88,4.88]
[1728696671558,4.88,145.95,145.88,13.3]
[1728696671559,8.42,145.94,145.88,13.3]
[1728696671863,8.42,145.92,145.88,13.3]
[1728696672546,8.42,145.92,145.89,3.4276]
[1728696674948,3.4269,145.93,145.88,13.3]
[1728696675155,3.4269,145.93,145.9,3.4275]
[1728696676552,3.427,145.92,145.89,3.4276]
[1728696686958,11.847,145.92,145.88,8.3078]
[1728696694478,3.427,145.92,145.88,8.3078]
[1728696694679,3.427,145.92,145.88,16.7278]
[1728696694878,3.427,145.92,145.88,13.3]
[1728696695081,3.427,145.92,145.89,3.4277]
[1728696695881,6.2219,145.96,145.88,13.3]
[1728696696075,8.42,145.94,145.9,3.4273]
[1728696696672,11.8466,145.94,145.9,3.4273]
[1728696696979,3.4266,145.94,145.91,3.4272]
[1728696698674,3.4266,145.94,145.89,8.42]
[1728696698878,3.4266,145.94,145.9,3.4274]
[1728696700584,3.4264,145.95,145.92,3.4269]
[1728696700776,1.43782,145.97,145.93,8.42]
[1728696700777,8.54502,145.97,145.93,8.42]
[1728696701093,8.54502,145.97,145.91,4.88]
[1728696701094,8.54502,145.97,145.92,1.3267]
[1728696701478,3.4263,145.96,145.92,1.3267]
[1728696702187,8.54502,145.97,145.92,1.3267]
[1728696702383,11.97092,145.97,145.93,8.42]
[1728696702781,11.97092,145.97,145.92,1.3267]
[1728696703086,11.97092,145.97,145.93,8.42]
[1728696704178,0.12502,145.97,145.95,3.4262]
[1728696706689,0.12502,145.97,145.94,8.3065]
[1728696708580,8.54502,145.97,145.94,4.88]
[1728696708778,8.42,145.96,145.92,1.3267]
[1728696708985,8.42,145.95,145.92,1.3267]
[1728696709188,3.4267,145.94,145.9,8.3073]
[1728696709683,11.8469,145.93,145.9,4.88]
[1728696715693,3.4269,145.93,145.9,4.88]
[1728696715993,3.4269,145.93,145.9,8.3075]
[1728696716292,3.4269,145.93,145.9,4.88]
[1728696716492,1.51342,145.97,145.9,4.88]
[1728696716694,0.12502,145.97,145.91,8.42]
[1728696718397,3.4262,145.96,145.93,3.4267]
[1728696719093,0.12502,145.97,145.91,8.42]
[1728696719293,3.4263,145.95,145.92,3.4269]
[1728696721793,0.12502,145.97,145.93,13.3]
[1728696722796,3.55102,145.97,145.93,16.7267]
[1728696725793,0.12502,145.97,145.94,8.42]
[1728696727399,0.12502,145.97,145.95,3.4263]
[1728696729696,0.12502,145.97,145.95,11.8463]
[1728696730001,0.12502,145.97,145.96,8.3061]
[1728696730197,126.12502,146.03,145.96,13.3]
[1728696730397,129.54962,146.03,145.99,11.8452]
[1728696731997,129.54962,146.03,145.99,16.7252]
[1728696735730,3.4247,146.02,145.99,16.7252]
[1728696736636,3.4247,146.02,145.99,13.3]
[1728696736928,3.4251,146.0,145.99,4.88]
[1728696739322,3.425,146.01,145.99,4.88]
[1728696746723,3.4248,146.02,145.99,13.3]
[1728696746910,3.4248,146.02,145.99,16.7253]
[1728696747616,126.12502,146.03,145.99,13.3]
[1728696747915,129.54962,146.03,146.0,11.8451]
[1728696748919,129.54962,146.03,146.0,3.4251]
[1728696750815,129.54962,146.03,146.0,11.8451]
[1728696751015,126.12502,146.03,146.0,11.8451]
[1728696751223,126.12502,146.03,146.01,3.4247]
[1728696751722,126.12502,146.03,146.02,11.8447]
[1728696753125,126.12502,146.03,146.02,16.7047]
[1728696761723,50.72702001,146.03,146.02,16.7047]
[1728696763225,50.72702001,146.03,146.02,8.2847]
[1728696763532,50.72702001,146.03,146.02,16.7047]
[1728696765527,3.54802,146.09,146.02,13.28]
[1728696765733,3.54802,146.09,146.06,8.42]
[1728696766433,0.12502,146.09,146.08,11.8432]
[1728696766632,0.12502,146.09,146.08,8.42]
[1728696766831,0.12502,146.09,146.08,13.28]
[1728696767428,0.12502,146.09,146.08,16.7032]
[1728696770431,0.12502,146.09,146.08,4.86]
[1728696773134,3.54802,146.09,146.08,4.86]
[1728696773841,3.54802,146.09,146.06,8.42]
[1728696774041,3.54802,146.09,146.06,11.8437]
[1728696776345,0.12502,146.09,146.07,8.42]
[1728696779739,0.12502,146.09,146.06,3.4237]
[1728696779938,0.12502,146.09,146.05,4.86]
[1728696780740,3.4234,146.08,146.05,8.2839]
[1728696780936,3.4234,146.08,146.05,4.86]
[1728696781150,3.4238,146.06,146.03,16.7043]
[1728696782049,3.4242,146.04,146.0,11.845]
[1728696782244,3.4242,146.04,146.0,16.705]
[1728696782444,3.4242,146.04,146.0,13.28]
[1728696783045,3.4242,146.04,146.0,16.705]
[1728696783745,3.424,146.05,146.01,11.8448]
[1728696784153,3.4239,146.06,146.01,8.42]
[1728696784343,3.4239,146.06,146.02,3.4246]
[1728696787052,3.4239,146.06,146.03,3.4244]
[1728696788255,8.42,146.07,146.01,8.42]
[1728696788551,3.4242,146.04,146.01,3.4247]
[1728696788756,3.4242,146.04,146.0,13.28]
[1728696788757,8.42,146.07,146.0,13.28]
[1728696788953,3.424,146.05,146.02,3.4246]
[1728696791152,3.4238,146.06,146.02,3.4246]
[1728696792062,8.42,146.07,146.02,3.4246]
[1728696792354,3.424,146.05,146.02,3.4246]
[1728696792748,11.82340601,146.07,146.0,4.86]
[1728696792954,11.82340601,146.07,146.0,8.285]
[1728696792955,3.4245,146.03,146.0,8.285]
[1728696793555,3.4247,146.02,145.99,8.2853]
[1728696793753,3.4247,146.02,145.99,3.4253]
[1728696797750,8.42,146.04,145.99,3.4253]
[1728696797956,3.4245,146.03,145.99,3.4253]
[1728696799162,3.4245,146.03,145.99,11.8453]
[1728696800654,4.86,146.05,146.02,3.4247]
[1728696800655,3.424,146.05,146.02,3.4247]
[1728696801561,3.4239,146.06,146.02,11.8447]
[1728696802557,8.42,146.05,146.0,8.42]
[1728696802759,8.42,146.05,146.01,3.4248]
[1728696803962,8.42,146.04,145.99,3.4252]
[1728696804162,8.42,146.04,145.98,13.28]
[1728696805061,11.8443,146.04,146.0,3.425]
[1728696805452,3.4243,146.04,146.0,3.425]
[1728696805658,3.4241,146.05,146.01,3.4247]
[1728696807755,3.4241,146.05,146.01,11.8447]
[1728696811563,3.4241,146.05,146.01,3.4247]
[1728696813159,13.28,146.06,146.01,3.4247]
[1728696813368,3.4242,146.04,146.01,3.4247]
[1728696813568,11.8442,146.04,145.99,8.42]
[1728696813868,4.86,146.06,145.98,4.86]
[1728696813869,3.4248,146.02,145.98,4.86]
[1728696814261,3.4248,146.02,145.99,3.4252]
[1728696815066,3.4248,146.02,145.98,4.86]
[1728696815272,3.4248,146.02,145.98,8.2854]
[1728696816365,8.42,146.01,145.98,8.2854]
[1728696819273,11.8445,146.03,145.99,3.4253]
[1728696820779,3.4245,146.03,145.99,3.4253]
[1728696820975,8.42,146.02,145.99,3.4253]
[1728696823882,7.29507465,146.08,145.99,8.42]
[1728696824177,13.28,146.07,146.01,8.42]
[1728696824580,3.424,146.05,146.02,3.4245]
[1728696825392,8.42,146.07,146.02,8.42]
[1728696825583,11.8436,146.07,146.04,3.4241]
[1728696826291,8.42,146.08,146.02,8.42]
[1728696826595,11.8433,146.08,146.05,3.4239]
[1728696828892,8.54502,146.09,146.06,3.4235]
[1728696829094,8.54502,146.09,146.05,8.42]
[1728696829597,0.12502,146.09,146.05,8.42]
[1728696829795,0.12502,146.09,146.06,3.4235]
[1728696831905,0.12502,146.09,146.05,8.42]
[1728696832200,0.12502,146.09,146.07,3.4233]
[1728696832797,11.96802,146.09,146.06,3.4236]
[1728696834799,11.96802,146.09,146.04,13.28]
[1728696835000,11.96802,146.09,146.05,3.4238]
[1728696836389,11.96802,146.09,146.04,13.28]
[1728696836594,11.96802,146.09,146.06,3.4237]
[1728696844602,0.12502,146.09,146.06,3.4237]
[1728696844813,0.12502,146.09,146.07,3.4234]
[1728696845505,0.12502,146.09,146.08,3.4232]
[1728696846209,0.12502,146.09,146.06,8.42]
[1728696846412,0.12502,146.09,146.07,3.4234]
[1728696848805,3.54822,146.09,146.06,3.4237]
[1728696849007,0.12502,146.09,146.04,13.28]
[1728696849507,8.42,146.08,146.0,1.4336]
[1728696849704,8.42,146.07,146.02,8.42]
[1728696850006,11.8436,146.07,146.03,3.4242]
[1728696850207,11.8436,146.07,146.02,8.42]
[1728696850405,11.8436,146.07,146.01,4.86]
[1728696850602,11.8436,146.07,146.02,8.42]
[1728696850908,3.4236,146.07,146.03,8.42]
[1728696851111,11.8433,146.08,146.03,8.42]
[1728696852410,11.8433,146.08,146.04,3.4241]
[1728696856612,11.8433,146.08,146.05,3.4239]
[1728696857314,13.40502,146.09,146.05,11.8439]
[1728696857515,13.40502,146.09,146.0,1.4336]
[1728696857516,0.12502,146.09,146.06,8.42]
[1728696857814,0.12502,146.09,146.07,8.42]
[1728696858408,0.12502,146.09,146.08,3.4232]
[1728696862914,0.12502,146.09,146.07,8.42]
[1728696862915,0.12502,146.09,146.07,3.4235]
[1728696863221,0.12502,146.09,146.06,8.42]
[1728696863526,0.12502,146.09,146.06,11.8436]
[1728696864413,3.54812,146.09,146.06,3.4236]
[1728696864621,11.96812,146.09,146.05,4.8349]
[1728696865024,8.54502,146.09,146.06,3.4236]
[1728696867723,0.12502,146.09,146.06,3.4236]
[1728696869531,0.12502,146.09,146.07,3.4235]
[1728696872729,0.12502,146.09,146.05,9.831]
[1728696873024,0.12502,146.09,146.08,3.4232]
[1728696884438,3.54812,146.09,146.06,3.4235]
[1728696884641,11.96812,146.09,146.06,3.4235]
[1728696887838,3.4234,146.08,146.05,4.8349]
[1728696888032,3.4234,146.08,146.03,8.42]
[1728696888033,11.8434,146.08,146.03,8.42]
[1728696888233,11.8434,146.08,146.03,13.28]
[1728696888950,11.8434,146.08,146.04,3.424]
[1728696891452,3.4235,146.07,146.04,3.424]
[1728696893240,3.424,146.05,146.02,3.4246]
[1728696895954,3.4238,146.06,146.02,11.8446]
[1728696896247,3.4238,146.06,146.03,3.4244]
[1728696897047,11.8436,146.07,146.03,3.4244]
[1728696899554,3.4237,146.06,146.03,3.4244]
[1728696904248,11.8441,146.05,146.02,3.4246]
[1728696904453,11.8441,146.05,146.01,4.86]
[1728696904648,11.8441,146.05,146.01,8.2847]
[1728696906054,3.4244,146.03,146.0,3.425]
[1728696906951,8.42,146.01,145.98,3.4254]
[1728696907154,8.42,146.01,145.94,4.0775]
[1728696907155,8.42,146.01,145.97,4.98502]
[1728696907457,8.42,146.0,145.97,0.12502]
[1728696908155,11.8453,146.0,145.97,0.12502]
[1728696908463,8.42,145.99,145.97,0.12502]
[1728696913757,8.42,145.98,145.97,0.12502]
[1728696914165,8.42,145.98,145.9,4.86]
[1728696914355,8.42,145.96,145.9,13.28]
[1728696914762,8.42,145.96,145.92,3.4269]
[1728696915355,7.6908,145.99,145.91,8.54502]
[1728696915567,8.42,145.98,145.92,8.42]
[1728696915766,8.42,145.98,145.92,9.7674]
[1728696916262,8.42,145.98,145.93,3.4266]
[1728696916460,8.42,145.98,145.92,9.7674]
[1728696916863,8.42,145.98,145.92,1.3474]
[1728696917362,8.42,145.98,145.94,3.4264]
[1728696917665,11.8456,145.98,145.94,3.4264]
[1728696920165,11.8459,145.97,145.92,1.3474]
[1728696920468,8.42,145.97,145.93,3.4267]
[1728696921362,11.8459,145.97,145.93,3.4267]
[1728696922462,8.42,145.97,145.94,3.4265]
[1728696924066,11.8458,145.97,145.94,3.4265]
[1728696924868,11.8458,145.97,145.92,1.3474]
[1728696925068,11.8458,145.97,145.93,3.4267]
[1728696926374,3.4262,145.96,145.92,1.3474]
[1728696926563,8.42,145.95,145.92,1.3474]
[1728696927869,8.42,145.95,145.92,4.7744]
[1728696930168,11.8459,145.97,145.93,3.4266]
[1728696930470,11.8459,145.97,145.92,9.7674]
[1728696931367,11.8459,145.97,145.94,3.4265]
[1728696937072,3.4254,145.99,145.96,3.426]
[1728696937370,11.8454,145.99,145.96,3.426]
[1728696940876,8.42,145.98,145.96,3.426]
[1728696943381,11.8459,145.97,145.94,3.4265]
[1728696947382,3.4259,145.97,145.94,3.4265]
[1728696949190,11.8457,145.98,145.94,3.4265]
[1728696951000,3.4254,145.99,145.94,8.42]
[1728696952294,3.4254,145.99,145.95,3.4262]
[1728696952492,11.8456,145.98,145.95,3.4262]
[1728696957496,8.42,145.98,145.95,3.4262]
[1728696957793,1.46542,146.03,145.94,8.42]
[1728696957794,8.42,146.0,145.94,8.42]
[1728696957993,8.42,146.01,145.96,3.4259]
[1728696958800,3.4252,146.0,145.96,3.4259]
[1728696960803,3.4252,146.0,145.97,3.4257]
[1728696963997,1.46542,146.03,145.96,8.42]
[1728696964303,0.12502,146.03,145.98,8.42]
[1728696964502,8.54502,146.03,145.97,9.8248]
[1728696964706,8.42,146.01,145.97,9.8248]
[1728696965201,8.42,146.01,145.98,3.4254]
[1728696965423,11.8449,146.01,145.98,3.4254]
[1728696965604,8.54502,146.03,145.97,9.8248]
[1728696966505,0.12502,146.03,145.98,8.42]
[1728696967502,3.54952,146.03,146.0,3.425]
[1728696969699,8.42,146.02,145.97,9.8248]
[1728696969910,11.8448,146.02,145.98,3.4255]
[1728696970298,11.8452,146.0,145.96,8.2859]
[1728696970705,11.8452,146.0,145.96,4.86]
[1728696970906,3.4252,146.0,145.96,4.86]
[1728696971211,11.845,146.01,145.97,3.4257]
[1728696971712,11.845,146.01,145.97,11.8457]
[1728696974718,11.845,146.01,145.97,8.42]
[1728696974916,11.845,146.01,145.98,3.4256]
[1728696975414,3.4247,146.02,145.98,3.4256]
[1728696976303,3.4249,146.01,145.98,3.4256]
[1728696977812,11.8449,146.01,145.98,3.4256]
[1728696983415,11.8449,146.01,145.96,13.28]
[1728696983416,8.42,146.01,145.96,13.28]
[1728696983616,8.42,146.01,145.97,3.4258]
[1728696984020,11.8449,146.01,145.97,3.4258]
[1728696992734,11.8449,146.01,145.96,13.28]
[1728696992934,11.8449,146.01,145.98,3.4255]
[1728696993634,8.54502,146.03,145.97,8.42]
[1728696993842,0.12502,146.03,145.98,8.42]
[1728696994333,3.54942,146.03,146.0,3.425]
[1728696995334,0.12502,146.03,146.02,3.4247]
[1728696998130,0.12502,146.03,146.02,11.8447]
[1728696998330,1e-08,146.03,146.02,16.6847]
[1728697020456,1e-08,146.03,146.02,8.2647]
[1728697020757,1e-08,146.03,146.01,4.84]
[1728697021256,1e-08,146.03,146.01,8.2649]
[1728697022455,1e-08,146.03,146.0,8.42]
[1728697022456,3.42460001,146.03,146.0,4.84]
[1728697023755,3.4247,146.02,146.0,4.84]
[1728697024755,3.4247,146.02,145.98,11.8455]
[1728697027260,8.42,145.99,145.79,0.12502]
[1728697027561,11.8468,145.93,145.91,0.12502]
[1728697027757,16.6868,145.93,145.91,0.12502]
[1728697028059,3.4274,145.91,145.85,0.12502]
[1728697028256,3.4274,145.91,145.86,8.42]
[1728697028563,8.42,145.92,145.86,8.42]
[1728697028860,4.84,145.92,145.86,8.42]
[1728697029663,4.84,145.92,145.85,0.12502]
[1728697029858,4.84,145.92,145.87,11.8481]
[1728697029859,8.2672,145.92,145.87,11.8481]
[1728697031860,3.4272,145.92,145.87,11.8481]
[1728697032064,3.4272,145.92,145.88,8.42]
[1728697032367,4.84,145.92,145.88,11.8479]
[1728697032551,8.42,145.9,145.85,0.12502]
[1728697032755,8.42,145.9,145.85,8.54502]
[1728697033553,11.8476,145.9,145.86,3.4284]
[1728697034265,3.4273,145.91,145.86,11.8484]
[1728697035457,3.4275,145.9,145.86,11.8484]
[1728697035659,11.8475,145.9,145.86,3.4284]
[1728697043566,16.7075,145.9,145.86,3.4284]
[1728697044073,8.42,145.89,145.86,3.4284]
[1728697046868,8.2875,145.9,145.86,3.4284]
[1728697047067,16.7075,145.9,145.86,3.4284]
[1728697047470,4.86,145.9,145.86,8.42]
[1728697048270,8.2875,145.9,145.86,11.8483]
[1728697048471,8.2875,145.9,145.85,8.54502]
[1728697049485,8.2875,145.9,145.86,3.4283]
[1728697050284,16.7075,145.9,145.86,3.4283]
[1728697053582,8.2875,145.9,145.86,3.4283]
[1728697053779,16.7075,145.9,145.86,3.4283]
[1728697056391,11.8475,145.9,145.85,8.54502]
[1728697056590,11.8475,145.9,145.87,3.4281]
[1728697059396,11.8475,145.9,145.85,0.12502]
[1728697059590,11.8475,145.9,145.86,3.4283]
[1728697068404,8.42,145.9,145.86,3.4283]
[1728697068611,3.4277,145.89,145.85,3.55352]
[1728697072405,11.8477,145.89,145.85,3.55352]
[1728697085319,3.4277,145.89,145.85,3.55352]
[1728697085512,3.4277,145.89,145.86,3.4284]
[1728697086621,3.4277,145.89,145.85,3.55362]
[1728697089619,11.8477,145.89,145.85,3.55362]
[1728697096925,3.4275,145.9,145.86,3.4284]
[1728697097126,11.8475,145.9,145.86,3.4284]
[1728697097624,3.4277,145.89,145.86,3.4284]
[1728697100125,8.42,145.9,145.86,3.4284]
[1728697100324,11.8475,145.9,145.86,3.4284]
[1728697101238,2.7098,145.95,145.85,8.54502]
[1728697101419,4.86,145.94,145.87,8.42]
[1728697101733,13.28,145.94,145.88,8.42]
[1728697101925,13.28,145.94,145.89,3.4276]
[1728697101926,3.4269,145.93,145.89,3.4276]
[1728697103527,3.4272,145.91,145.88,3.4279]
[1728697104428,11.8471,145.92,145.88,3.4279]
[1728697107944,3.4271,145.92,145.88,3.4279]
[1728697108138,11.8471,145.92,145.86,14.6011]
[1728697108432,11.8471,145.92,145.89,3.4277]
[1728697109030,8.42,145.92,145.89,3.4277]
[1728697116141,8.42,145.92,145.86,14.6011]
[1728697116441,8.42,145.91,145.86,14.6011]
[1728697116640,8.42,145.91,145.86,6.1811]
[1728697117538,11.8472,145.91,145.88,3.4279]
[1728697118035,8.42,145.91,145.88,3.4279]
[1728697131564,11.8472,145.91,145.88,3.4279]
[1728697133056,8.42,145.91,145.88,3.4279]
[1728697133457,8.42,145.91,145.86,6.1811]
[1728697133756,8.42,145.89,145.87,3.4281]
[1728697137960,16.7073,145.91,145.87,3.4281]
[1728697138878,8.2873,145.91,145.87,3.4281]
[1728697139064,16.7073,145.91,145.87,3.4281]
[1728697140264,8.24529758,145.93,145.87,8.42]
[1728697140469,8.42,145.92,145.87,8.42]
[1728697141369,11.847,145.92,145.89,3.4277]
[1728697142670,8.42,145.92,145.89,3.4277]
[1728697146263,8.42,145.9,145.85,4.96502]
[1728697146564,8.42,145.88,145.86,3.4283]
[1728697147159,8.2675,145.9,145.86,3.4283]
[1728697147463,16.6875,145.9,145.87,3.4282]
[1728697149361,3.4277,145.89,145.86,3.4283]
[1728697149566,4.84,145.9,145.85,0.12502]
[1728697149970,16.6876,145.9,145.87,3.4282]
[1728697150569,11.8476,145.9,145.87,3.4282]
[1728697152465,4.84,145.91,145.85,8.54502]
[1728697152665,3.4272,145.92,145.85,8.54502]
[1728697152975,76.92087242,145.94,145.87,8.42]
[1728697153163,78.33427242,145.94,145.88,8.42]
[1728697153363,13.26,145.94,145.88,8.42]
[1728697153875,335.0,146.0,145.91,8.42]
[1728697154066,4.84,145.95,145.91,8.42]
[1728697154375,8.42,145.96,145.91,8.42]
[1728697154760,11.8461,145.96,145.93,3.4266]
[1728697154964,4.96502,145.97,145.89,4.84]
[1728697154965,8.42,145.95,145.89,13.26]
[1728697156373,11.8464,145.95,145.91,3.4271]
[1728697162781,8.2662,145.96,145.92,3.427]
[1728697163878,3.4262,145.96,145.92,3.427]
[1728697164078,3.4262,145.96,145.9,8.42]
[1728697164079,11.8462,145.96,145.93,3.4267]
[1728697165783,8.42,145.96,145.93,3.4267]
[1728697165978,8.39092,145.97,145.92,3.4269]
[1728697166184,16.81092,145.97,145.91,8.42]
[1728697166586,16.81092,145.97,145.93,3.4266]
[1728697166782,16.81092,145.97,145.91,8.42]
[1728697167390,16.81092,145.97,145.93,3.4266]
[1728697168185,8.39092,145.97,145.93,3.4266]
[1728697168491,3.4262,145.96,145.93,3.4267]
[1728697169388,4.96502,145.97,145.94,3.4265]
[1728697169594,13.38502,145.97,145.94,3.4265]
[1728697170386,0.12502,145.97,145.92,8.42]
[1728697170688,0.12502,145.97,145.95,3.4263]
[1728697171192,0.12502,145.97,145.94,8.42]
[1728697171391,0.12502,145.97,145.96,3.4261]
[1728697171695,0.12502,145.97,145.92,6.2224]
[1728697171696,0.12502,145.97,145.94,8.42]
[1728697171891,0.12502,146.03,146.01,3.4248]
[1728697172490,0.12502,146.03,146.02,3.4247]
[1728697174702,0.12502,146.03,146.02,11.8447]
[1728697181902,3.54822,146.09,146.02,8.42]
[1728697182106,11.96822,146.09,146.04,3.4241]
[1728697183397,8.54502,146.09,146.04,3.4241]
[1728697183597,11.8433,146.08,146.03,3.4244]
[1728697183802,8.42,146.08,146.03,3.4244]
[1728697185505,3.4235,146.07,146.03,3.4244]
[1728697187907,0.12502,146.09,146.06,3.4236]
[1728697188609,0.12502,146.09,146.06,3.4237]
[1728697189105,0.12502,146.09,146.07,11.8434]
[1728697189509,0.12502,146.09,146.07,8.42]
[1728697190512,0.12502,146.09,146.08,3.4232]
[1728697190713,0.12502,146.09,146.04,6.1612]
[1728697190912,0.12502,146.09,146.07,3.4234]
[1728697192907,3.54802,146.09,146.06,3.4237]
[1728697195710,3.4233,146.08,146.05,8.42]
[1728697195915,3.4233,146.08,146.05,11.8439]
[1728697196211,8.54502,146.09,146.03,9.8069]
[1728697196408,3.4235,146.07,146.04,3.4242]
[1728697200313,3.4235,146.07,146.03,14.6469]
[1728697200516,3.4235,146.07,146.03,18.0712]
[1728697201714,3.4235,146.07,146.04,3.4242]
[1728697202112,3.4235,146.07,146.03,14.6469]
[1728697202518,3.4239,146.06,146.03,4.84]
[1728697202814,0.12502,146.09,145.98,4.84]
[1728697202815,8.42,146.04,145.98,4.84]
[1728697203508,8.42,146.02,145.98,4.84]
[1728697204016,3.425,146.01,145.98,4.84]
[1728697204328,8.42,146.02,145.97,0.12502]
[1728697204714,8.42,146.01,145.97,0.12502]
[1728697205319,3.4252,146.0,145.97,0.12502]
[1728697206413,8.42,146.01,145.97,0.12502]
[1728697206608,3.4252,146.0,145.97,0.12502]
[1728697208412,3.425,146.01,145.97,8.54502]
[1728697209013,8.42,146.02,145.97,8.54502]
[1728697209314,11.8447,146.02,145.98,3.4256]
[1728697210016,11.8447,146.02,145.97,8.54502]
[1728697210219,1.3058,146.06,145.99,8.42]
[1728697210516,3.4241,146.05,145.99,8.42]
[1728697210819,11.8441,146.05,145.99,13.26]
[1728697211012,11.8441,146.05,146.01,3.4247]
[1728697214522,3.4242,146.04,146.01,3.4247]
[1728697218326,3.4245,146.03,146.0,3.4251]
[1728697221424,8.42,146.03,145.99,4.84]
[1728697221622,3.4248,146.02,145.99,8.2653]
[1728697224230,3.4248,146.02,145.99,4.84]
[1728697225427,8.42,146.02,145.99,4.84]
[1728697225632,8.42,146.0,145.97,0.12502]
[1728697225830,11.8456,145.98,145.97,0.12502]
[1728697226637,11.8456,145.98,145.91,8.39222]
[1728697226638,3.4264,145.95,145.91,8.39222]
[1728697227027,8.42,145.94,145.91,0.12502]
[1728697227227,3.4268,145.93,145.91,0.12502]
[1728697227423,8.42,145.94,145.91,0.12502]
[1728697229036,11.8467,145.94,145.91,0.12502]
[1728697229236,8.20642657,145.98,145.91,0.12502]
[1728697229433,8.42,145.95,145.91,0.12502]
[1728697229649,11.8464,145.95,145.91,0.12502]
[1728697230141,11.8464,145.95,145.91,3.55212]
[1728697232037,11.8459,145.97,145.93,3.4267]
[1728697232337,8.42,145.97,145.93,3.4267]
[1728697233540,3.4261,145.96,145.92,3.427]
[1728697235933,4.84,145.98,145.92,8.42]
[1728697236134,4.84,145.98,145.91,0.12502]
[1728697236135,8.42,145.98,145.93,8.42]
[1728697236540,3.4255,145.99,145.96,3.4259]
[1728697236742,11.2689,146.0,145.94,8.42]
[1728697236944,8.42,145.98,145.94,13.26]
[1728697237478,8.42,145.98,145.94,4.84]
[1728697238638,2.8489,146.0,145.92,1.3789]
[1728697238639,8.42,145.95,145.92,1.3789]
[1728697238841,8.42,145.95,145.91,0.12502]
[1728697239235,3.4266,145.94,145.91,3.55222]
[1728697239545,8.42,145.95,145.91,3.55222]
[1728697239739,11.8464,145.95,145.91,3.55222]
[1728697239944,11.8464,145.95,145.91,0.12502]
[1728697240241,11.8464,145.95,145.92,3.427]
[1728697241535,3.4264,145.95,145.92,3.427]
[1728697241737,11.8464,145.95,145.92,3.427]